bitfinex-derivatives/quotes_SOLF0:USTF0_20250909
["timestamp","ask_amount","ask_price","bid_price","bid_amount"]
[1757378440421,7.54,212.53,212.4,24.44]
[1757378440917,7.54,212.53,212.41,4.38]
[1757378441118,7.54,212.53,212.41,33.2]
[1757378441318,7.54,212.52,212.41,4.38]
[1757378445714,7.54,212.52,212.41,125.38]
[1757378445920,7.54,212.52,212.42,4.38]
[1757378446120,7.54,212.52,212.42,125.38]
[1757378448117,5.18133952,212.54,212.43,4.38]
[1757378448316,12.38133952,212.56,212.43,4.38]
[1757378449321,7.2,212.6,212.43,4.38]
[1757378450024,7.2,212.6,212.47,4.38]
[1757378450619,7.2,212.57,212.47,4.38]
[1757378451617,7.2,212.56,212.44,120.44]
[1757378451820,7.2,212.56,212.43,4.38]
[1757378452022,12.38133952,212.53,212.43,4.38]
[1757378453928,10.38126286,212.62,212.43,4.38]
[1757378453929,5.18133952,212.55,212.43,4.38]
[1757378454130,7.2,212.58,212.43,4.38]
[1757378454430,7.2,212.58,212.4,6.79337996]
[1757378454431,5.18133952,212.61,212.5,4.38]
[1757378454626,9.87935899,212.62,212.53,4.38]
[1757378454627,7.2,212.62,212.53,4.38]
[1757378455024,7.2,212.62,212.5,22.46]
[1757378455025,5.18133952,212.65,212.56,4.38]
[1757378455228,7.2,212.64,212.56,4.38]
[1757378455531,7.2,212.64,212.47,316.38]
[1757378455532,2.67935899,212.63,212.52,46.44]
[1757378455729,2.67935899,212.6,212.51,4.38]
[1757378456331,12.38133952,212.62,212.51,4.38]
[1757378456730,0.03215081,212.59,212.51,4.38]
[1757378456933,0.03215081,212.59,212.54,0.03353843]
[1757378457131,7.23215081,212.59,212.54,0.03353843]
[1757378458834,7.2,212.58,212.54,0.03353843]
[1757378459829,0.03215081,212.59,212.54,4.41353843]
[1757378460030,0.03215081,212.59,212.54,0.03353843]
[1757378460226,0.03215081,212.59,212.55,4.38]
[1757378461135,0.03215081,212.59,212.54,0.03353843]
[1757378461335,0.03215081,212.59,212.55,4.38]
[1757378464438,0.03215081,212.59,212.54,0.03353843]
[1757378464634,0.03215081,212.59,212.55,4.38]
[1757378466047,0.03215081,212.59,212.54,0.03353843]
[1757378466245,0.03215081,212.59,212.55,120.34]
[1757378466448,0.03215081,212.59,212.56,4.38]
[1757378466645,0.03215081,212.59,212.57,124.7]
[1757378467547,0.03215081,212.59,212.57,4.38]
[1757378467750,0.03215081,212.59,212.54,0.03353843]
[1757378467751,0.03215081,212.59,212.56,110.02]
[1757378467946,0.03215081,212.59,212.54,0.03353843]
[1757378468141,7.2,212.58,212.54,0.03353843]
[1757378469942,0.03215081,212.59,212.54,0.03353843]
[1757378470350,7.2,212.57,212.54,0.03353843]
[1757378470543,7.2,212.57,212.44,121.0]
[1757378470544,0.03215081,212.59,212.46,15.86]
[1757378470844,6.78676087,212.6,212.46,15.86]
[1757378471049,7.2,212.59,212.46,15.86]
[1757378471748,0.0316282,212.55,212.47,4.41]
[1757378471944,0.0316282,212.55,212.48,120.28]
[1757378472643,0.0316282,212.55,212.48,120.26]
[1757378474450,0.0316282,212.55,212.47,4.41]
[1757378474648,0.0316282,212.55,212.47,124.53]
[1757378475653,0.0316282,212.55,212.47,4.41]
[1757378475852,0.0316282,212.55,212.44,121.0]
[1757378475853,7.48,212.54,212.44,121.0]
[1757378476048,7.48,212.54,212.44,120.08]
[1757378476851,7.48,212.54,212.45,4.4]
[1757378477251,7.48,212.54,212.45,125.4]
[1757378478155,0.0316282,212.55,212.45,4.4]
[1757378478553,0.0316282,212.55,212.46,120.04]
[1757378479154,19.44810039,212.54,212.36,4.4]
[1757378479354,12.66133952,212.52,212.39,4.4]
[1757378479755,0.0356754,212.48,212.39,4.4]
[1757378482752,0.0356754,212.48,212.4,4.4]
[1757378485256,0.0356754,212.48,212.4,125.4]
[1757378486162,0.0356754,212.48,212.41,120.24]
[1757378486455,0.0356754,212.48,212.4,125.4]
[1757378486661,0.0356754,212.48,212.41,120.2]
[1757378486862,7.5156754,212.48,212.41,120.2]
[1757378487258,7.5156754,212.48,212.4,125.4]
[1757378487560,7.5156754,212.48,212.4,245.6]
[1757378487561,0.0356754,212.48,212.4,245.6]
[1757378488360,0.0356754,212.48,212.4,125.4]
[1757378488558,0.0356754,212.48,212.4,245.56]
[1757378489763,0.0356754,212.48,212.4,125.4]
[1757378490151,0.0356754,212.48,212.42,4.4]
[1757378490352,0.0356754,212.48,212.43,120.04]
[1757378490559,0.0356754,212.48,212.4,121.0]
[1757378490760,0.0356754,212.48,212.41,124.44]
[1757378490963,15.02,212.61,212.41,124.44]
[1757378490964,5.18133952,212.57,212.42,4.4]
[1757378491262,7.48,212.6,212.45,4.37]
[1757378492459,7.48,212.6,212.48,4.37]
[1757378492660,7.48,212.6,212.49,120.06]
[1757378493561,7.48,212.6,212.5,120.02]
[1757378493854,12.66133952,212.6,212.44,125.22224381]
[1757378494055,7.48,212.57,212.45,119.98]
[1757378496162,7.48,212.57,212.46,4.37]
[1757378496358,7.48,212.57,212.46,124.27]
[1757378497263,7.48,212.57,212.46,4.37]
[1757378497561,7.48,212.57,212.46,124.25]
[1757378498358,1.71578834,212.53,212.46,125.96578834]
[1757378498664,5.18133952,212.6,212.49,4.38]
[1757378498864,12.66133952,212.61,212.52,1.71578834]
[1757378499064,1.71578834,212.59,212.52,1.71578834]
[1757378499362,1.71578834,212.6,212.54,1.71578834]
[1757378499765,1.71578834,212.6,212.54,6.09578834]
[1757378501360,1.71578834,212.62,212.54,6.09578834]
[1757378501562,1.71578834,212.62,212.56,1.71578834]
[1757378502164,5.18133952,212.63,212.56,1.71578834]
[1757378502464,1.71578834,212.63,212.57,4.38]
[1757378502656,0.03499803,212.62,212.56,1.71578834]
[1757378502860,0.03499803,212.62,212.59,4.38]
[1757378503264,0.03499803,212.62,212.61,4.36]
[1757378505263,0.03499803,212.62,212.58,1.75067936]
[1757378505462,0.03499803,212.62,212.58,6.11067936]
[1757378505766,0.03499803,212.62,212.59,4.36]
[1757378507972,0.03499803,212.62,212.58,1.75067936]
[1757378508174,0.03499803,212.62,212.59,4.36]
[1757378508666,0.03499803,212.62,212.58,1.75067936]
[1757378508877,0.03499803,212.62,212.59,4.36]
[1757378509077,0.03499803,212.62,212.58,1.75067936]
[1757378509667,0.03499803,212.62,212.59,4.36]
[1757378510066,0.03499803,212.62,212.6,4.36]
[1757378510767,0.03499803,212.62,212.59,1.71578834]
[1757378510974,0.03499803,212.62,212.58,0.03489102]
[1757378510975,0.03499803,212.62,212.6,4.36]
[1757378511170,0.03499803,212.62,212.6,6.07578834]
[1757378511369,0.03499803,212.62,212.58,1.75067936]
[1757378511572,0.03499803,212.62,212.58,6.11067936]
[1757378511773,0.03499803,212.62,212.59,4.36]
[1757378511968,0.03499803,212.62,212.6,4.36]
[1757378512173,0.03499803,212.62,212.61,4.36]
[1757378517577,0.03499803,212.62,212.61,123.52]
[1757378520773,0.03499803,212.62,212.61,119.64]
[1757378520973,7.33,212.76,212.68,4.32]
[1757378521170,7.33,212.76,212.7,1.71578834]
[1757378521372,1.71578834,212.75,212.7,1.71578834]
[1757378521578,7.33,212.75,212.7,1.71578834]
[1757378521773,1.71578834,212.76,212.7,1.71578834]
[1757378522078,5.18133952,212.82,212.7,0.03030829]
[1757378522079,1.71578834,212.74,212.7,0.03030829]
[1757378522583,7.33,212.73,212.7,0.03030829]
[1757378523275,7.33,212.75,212.7,0.03030829]
[1757378523681,1.71578834,212.76,212.7,0.03030829]
[1757378524380,7.33,212.75,212.7,0.03030829]
[1757378524784,1.71578834,212.74,212.7,0.03030829]
[1757378525176,7.33,212.73,212.7,0.03030829]
[1757378525372,1.71578834,212.74,212.7,0.03030829]
[1757378525580,7.33,212.71,212.7,0.03030829]
[1757378527682,7.33,212.73,212.7,0.03030829]
[1757378528081,5.18133952,212.8,212.7,1.74609663]
[1757378528385,1.71578834,212.77,212.7,1.74609663]
[1757378528591,7.33,212.76,212.7,1.74609663]
[1757378531285,7.33,212.76,212.72,6.03578834]
[1757378531585,7.33,212.78,212.72,1.71578834]
[1757378531780,1.71578834,212.77,212.7,1.74609663]
[1757378532184,1.71578834,212.75,212.7,0.03030829]
[1757378532382,7.33,212.74,212.7,0.03030829]
[1757378532582,7.33,212.74,212.68,1.71578834]
[1757378532783,7.33,212.74,212.7,0.03598167]
[1757378533183,7.33,212.74,212.7,1.75177001]
[1757378534886,1.71578834,212.77,212.7,1.75177001]
[1757378535088,7.72,212.79,212.7,1.75177001]
[1757378535287,1.71578834,212.78,212.7,1.71578834]
[1757378535486,1.71578834,212.78,212.72,0.03189282]
[1757378536688,7.72,212.75,212.72,0.03189282]
[1757378536886,7.72,212.73,212.72,0.03189282]
[1757378537087,7.72,212.73,212.61,4.33]
[1757378537381,1.71578834,212.7,212.64,1.71578834]
[1757378537988,1.71578834,212.7,212.62,39.9]
[1757378537989,1.71578834,212.72,212.66,1.71578834]
[1757378539689,9.43578834,212.73,212.67,1.71578834]
[1757378542285,5.18133952,212.75,212.71,1.71578834]
[1757378542480,12.90133952,212.75,212.71,1.71578834]
[1757378542682,7.72,212.75,212.71,1.71578834]
[1757378542989,65.98126286,212.84,212.63,239.76]
[1757378542990,5.18133952,212.78,212.73,6.07578834]
[1757378543188,7.72,212.77,212.73,1.71578834]
[1757378543386,7.72,212.76,212.73,1.71578834]
[1757378543590,5.18133952,212.77,212.71,1.71578834]
[1757378543794,5.18133952,212.76,212.71,1.71578834]
[1757378544188,7.72,212.75,212.71,1.71578834]
[1757378544394,5.18133952,212.76,212.71,1.71578834]
[1757378544590,7.72,212.73,212.65,4.36]
[1757378544798,1.71578834,212.72,212.61,4.36]
[1757378544999,1.71578834,212.72,212.66,1.71578834]
[1757378546197,14.61712786,212.73,212.66,1.71578834]
[1757378547299,5.18133952,212.72,212.66,1.71578834]
[1757378548899,5.18133952,212.72,212.67,0.03218523]
[1757378549608,7.72,212.7,212.67,0.03218523]
[1757378550900,5.18133952,212.72,212.67,0.03218523]
[1757378551099,7.72,212.71,212.67,0.03218523]
[1757378551502,5.18133952,212.72,212.67,0.03218523]
[1757378551698,7.72,212.71,212.67,0.03218523]
[1757378552300,7.72,212.72,212.67,0.03218523]
[1757378552495,1.71578834,212.73,212.67,0.03218523]
[1757378552702,7.72,212.72,212.67,0.03218523]
[1757378552903,1.71578834,212.73,212.67,0.03218523]
[1757378553300,7.72,212.72,212.67,0.03218523]
[1757378553898,6.89712786,212.73,212.67,0.03218523]
[1757378554094,7.72,212.72,212.67,0.03218523]
[1757378554500,5.18133952,212.73,212.67,0.03218523]
[1757378555202,7.72,212.72,212.67,0.03218523]
[1757378555397,5.18133952,212.73,212.67,0.03218523]
[1757378556303,12.90133952,212.73,212.67,0.03218523]
[1757378558001,7.72,212.71,212.67,0.03218523]
[1757378558307,5.18133952,212.71,212.67,0.03218523]
[1757378558706,7.72,212.7,212.67,0.03218523]
[1757378558914,12.90133952,212.72,212.67,4.39218523]
[1757378559208,7.72,212.72,212.68,4.36]
[1757378559409,12.90133952,212.72,212.68,4.36]
[1757378560004,5.18133952,212.74,212.68,4.36]
[1757378560407,5.18133952,212.73,212.67,2.70848988]
[1757378560606,5.18133952,212.73,212.68,4.36]
[1757378560806,5.18133952,212.73,212.67,2.70848988]
[1757378561111,5.18133952,212.73,212.67,7.06848988]
[1757378561613,5.18133952,212.75,212.67,7.06848988]
[1757378564114,7.82,212.75,212.7,7.02630465]
[1757378564308,13.00133952,212.75,212.7,7.02630465]
[1757378564911,5.18133952,212.75,212.7,7.02630465]
[1757378565111,13.00133952,212.75,212.7,7.02630465]
[1757378565311,7.82,212.74,212.67,7.05848988]
[1757378565516,5.18133952,212.73,212.67,4.38218523]
[1757378568219,13.00133952,212.74,212.67,4.38218523]
[1757378571318,5.18133952,212.73,212.67,4.38218523]
[1757378571923,13.00133952,212.74,212.69,2.67630465]
[1757378572122,13.00133952,212.74,212.7,4.35]
[1757378572421,7.82,212.74,212.69,2.67630465]
[1757378573022,5.21618531,212.75,212.69,2.67630465]
[1757378573023,5.21618531,212.75,212.69,7.02630465]
[1757378574217,0.03484579,212.75,212.69,7.02630465]
[1757378574622,0.03484579,212.75,212.73,4.35]
[1757378576419,0.03484579,212.75,212.72,2.70781955]
[1757378576420,0.03484579,212.75,212.72,121.36781955]
[1757378576720,0.03484579,212.75,212.73,4.35]
[1757378576921,0.03484579,212.75,212.72,121.36781955]
[1757378577121,0.03484579,212.75,212.74,4.35]
[1757378580122,5.18133952,212.84,212.74,4.35]
[1757378580318,5.18133952,212.84,212.78,7.02630465]
[1757378580523,13.00133952,212.85,212.78,125.66630465]
[1757378580726,7.82,212.85,212.81,7.02630465]
[1757378581326,5.18133952,212.87,212.81,7.06049124]
[1757378582330,5.18133952,212.85,212.82,4.35]
[1757378582630,13.00133952,212.85,212.82,4.35]
[1757378583427,7.82,212.85,212.81,2.71049124]
[1757378583825,5.18133952,212.86,212.82,4.35]
[1757378584028,13.00133952,212.87,212.81,7.06049124]
[1757378584230,7.82,212.87,212.81,7.06049124]
[1757378584430,7.82,212.87,212.81,7.02630465]
[1757378584731,7.82,212.87,212.83,4.35]
[1757378584929,7.82,212.87,212.83,7.02630465]
[1757378585129,7.82,212.87,212.84,4.35]
[1757378585629,7.82,212.91,212.84,4.35]
[1757378585827,7.82,212.91,212.87,4.35]
[1757378587232,7.82,212.94,212.89,7.02630465]
[1757378587425,7.82,212.94,212.89,2.67630465]
[1757378587633,7.82,212.94,212.9,4.35]
[1757378588133,7.82,212.95,212.89,0.03469541]
[1757378588323,7.82,212.91,212.82,2.67630465]
[1757378588528,7.82,212.91,212.8,4.35]
[1757378589430,13.00133952,212.91,212.8,4.35]
[1757378589829,7.82,212.91,212.8,4.35]
[1757378590037,13.00133952,212.91,212.8,4.35]
[1757378590238,2.67630465,212.86,212.76,2.67630465]
[1757378590539,7.82,212.84,212.73,2.67630465]
[1757378590734,7.82,212.84,212.72,44.2]
[1757378590933,2.67630465,212.86,212.73,2.67630465]
[1757378591232,7.82,212.85,212.7,4.39]
[1757378591439,7.82,212.85,212.73,2.67630465]
[1757378591632,10.49630465,212.85,212.73,2.67630465]
[1757378592939,7.82,212.85,212.76,2.67630465]
[1757378593439,7.82,212.85,212.76,7.05630465]
[1757378596742,7.82,212.85,212.79,2.67630465]
[1757378598642,7.82,212.85,212.78,2.67630465]
[1757378601951,7.85764417,212.89,212.76,121.0]
[1757378602150,7.46,212.88,212.76,121.0]
[1757378602349,2.67630465,212.86,212.76,121.0]
[1757378602547,7.46,212.85,212.76,121.0]
[1757378603544,7.46,212.85,212.73,2.67630465]
[1757378606054,7.46,212.82,212.73,2.67630465]
[1757378606255,7.46,212.82,212.69,437.0]
[1757378606256,7.46,212.82,212.7,2.67630465]
[1757378606760,7.46,212.82,212.69,437.0]
[1757378607055,7.46,212.82,212.71,2.67630465]
[1757378608751,7.46,212.79,212.68,2.67630465]
[1757378608952,7.46,212.79,212.64,4.38]
[1757378608953,2.67630465,212.77,212.65,2.67630465]
[1757378609148,7.46,212.76,212.65,2.67630465]
[1757378609350,7.46,212.73,212.57,4.38]
[1757378609559,7.46,212.73,212.61,2.67630465]
[1757378609960,7.46,212.68,212.65,0.03073422]
[1757378610758,0.03576879,212.69,212.65,0.03073422]
[1757378610959,7.46,212.68,212.65,0.03073422]
[1757378611360,0.03576879,212.69,212.65,0.03073422]
[1757378611565,7.46,212.68,212.65,0.03073422]
[1757378611755,0.03576879,212.69,212.65,0.03073422]
[1757378612061,7.46,212.68,212.65,0.03073422]
[1757378612457,0.03576879,212.69,212.65,0.03073422]
[1757378613063,7.46,212.68,212.65,0.03073422]
[1757378614169,0.03576879,212.69,212.65,0.03073422]
[1757378614465,7.46,212.68,212.65,0.03073422]
[1757378614665,0.03576879,212.69,212.65,0.03073422]
[1757378614860,7.46,212.68,212.65,0.03073422]
[1757378615063,0.03576879,212.69,212.65,0.03073422]
[1757378615469,7.46,212.68,212.65,0.03073422]
[1757378615663,0.03576879,212.69,212.65,0.03073422]
[1757378616369,7.46,212.67,212.65,0.03073422]
[1757378616565,0.03576879,212.69,212.65,0.03073422]
[1757378616774,7.46,212.68,212.65,0.03073422]
[1757378617567,0.03576879,212.69,212.65,0.03073422]
[1757378617766,7.46,212.68,212.65,0.03073422]
[1757378618167,0.03576879,212.69,212.65,0.03073422]
[1757378618370,7.46,212.68,212.65,0.03073422]
[1757378618563,0.03576879,212.69,212.66,1.7136836]
[1757378618764,7.49576879,212.69,212.66,1.7136836]
[1757378621775,0.03576879,212.69,212.66,1.7136836]
[1757378622072,7.49576879,212.69,212.66,1.7136836]
[1757378622773,5.18133952,212.78,212.68,1.7136836]
[1757378622970,5.18133952,212.78,212.67,52.72]
[1757378622971,7.46,212.84,212.77,1.7136836]
[1757378623171,7.46,212.89,212.83,1.7136836]
[1757378623373,7.44,212.92,212.86,1.7136836]
[1757378623768,1.7136836,212.91,212.86,1.7136836]
[1757378624071,7.44,212.88,212.82,1.7136836]
[1757378627974,1.7136836,212.91,212.84,1.7136836]
[1757378628180,7.44,212.9,212.84,1.7136836]
[1757378628377,1.7136836,212.91,212.86,1.7136836]
[1757378628574,7.44,212.9,212.86,1.7136836]
[1757378628774,7.44,212.92,212.86,1.7136836]
[1757378628975,434.54,212.94,212.88,1.7136836]
[1757378629582,7.44,212.93,212.88,1.7136836]
[1757378629876,316.08,212.94,212.88,1.7136836]
[1757378630072,323.52,212.94,212.88,1.7136836]
[1757378632382,328.70133952,212.94,212.88,1.7136836]
[1757378634684,7.44,212.91,212.84,1.7136836]
[1757378634880,12.62133952,212.91,212.84,1.7136836]
[1757378635283,123.58133952,212.92,212.88,1.7136836]
[1757378635480,7.44,212.89,212.88,1.7136836]
[1757378636183,7.44,212.89,212.86,1.7136836]
[1757378636784,5.18133952,212.91,212.86,1.7136836]
[1757378636984,7.44,212.9,212.86,1.7136836]
[1757378637377,5.18133952,212.91,212.86,1.7136836]
[1757378637878,7.44,212.9,212.86,1.7136836]
[1757378638483,125.29502312,212.92,212.86,1.7136836]
[1757378638876,7.44,212.91,212.86,1.7136836]
[1757378639479,125.29502312,212.92,212.86,1.7136836]
[1757378639884,7.44,212.91,212.86,1.7136836]
[1757378640284,125.29502312,212.92,212.86,1.7136836]
[1757378640584,12.62133952,212.92,212.86,1.7136836]
[1757378640786,131.00133952,212.92,212.86,1.7136836]
[1757378640983,7.44,212.91,212.88,1.7136836]
[1757378641180,123.56133952,212.92,212.88,1.7136836]
[1757378641386,7.44,212.91,212.88,1.7136836]
[1757378641982,118.38,212.92,212.88,1.7136836]
[1757378642287,7.44,212.91,212.88,1.7136836]
[1757378642489,321.26133952,212.94,212.9,1.7136836]
[1757378642684,7.44,212.93,212.9,1.7136836]
[1757378643080,118.36,212.94,212.9,1.7136836]
[1757378643482,7.44,212.93,212.9,1.7136836]
[1757378643683,118.36,212.94,212.9,1.7136836]
[1757378643885,7.44,212.93,212.9,1.7136836]
[1757378644085,7.44,212.93,212.87,1.7136836]
[1757378644285,7.44,212.91,212.85,1.7136836]
[1757378644490,7.44,212.89,212.83,1.7136836]
[1757378644686,7.44,212.87,212.8,1.7136836]
[1757378644887,7.44,212.85,212.8,1.7136836]
[1757378645390,1.7136836,212.86,212.8,1.7136836]
[1757378645984,1.7136836,212.84,212.74,4.38]
[1757378646290,7.44,212.83,212.77,1.7136836]
[1757378646684,7.44,212.83,212.78,0.03343154]
[1757378647088,1.7136836,212.84,212.78,0.03343154]
[1757378647283,5.18133952,212.87,212.78,0.03343154]
[1757378647487,1.7136836,212.85,212.78,1.74711514]
[1757378648188,1.7136836,212.87,212.8,1.7136836]
[1757378648389,1.7136836,212.87,212.82,1.7136836]
[1757378648592,7.44,212.86,212.82,1.7136836]
[1757378649095,7.44,212.86,212.82,1.74619782]
[1757378649989,7.44,212.87,212.84,1.7136836]
[1757378650195,7.44,212.91,212.86,1.7136836]
[1757378650495,1.7136836,212.92,212.86,1.7136836]
[1757378650688,7.44,212.91,212.86,1.7136836]
[1757378650893,7.44,212.91,212.86,1.74628864]
[1757378651300,1.7136836,212.92,212.86,1.74628864]
[1757378651588,7.44,212.91,212.86,1.74628864]
[1757378651794,6.89502312,212.92,212.86,1.74628864]
[1757378652389,7.44,212.91,212.86,1.74628864]
[1757378652585,1.7136836,212.92,212.86,1.74628864]
[1757378653695,9.4036836,212.92,212.86,1.74628864]
[1757378655996,7.69,212.92,212.88,1.7136836]
[1757378656791,7.69,212.92,212.88,6.0836836]
[1757378657387,7.69,212.89,212.86,0.03260504]
[1757378658389,1.7136836,212.9,212.86,0.03260504]
[1757378658599,7.69,212.89,212.86,0.03260504]
[1757378658998,7.69,212.89,212.86,1.74628864]
[1757378660293,1.7136836,212.92,212.86,1.74628864]
[1757378660294,6.89502312,212.92,212.86,1.74628864]
[1757378661888,5.18133952,212.92,212.86,0.03260504]
[1757378662090,7.69,212.89,212.86,0.03260504]
[1757378662490,1.7136836,212.9,212.86,0.03260504]
[1757378662903,7.69,212.89,212.86,0.03260504]
[1757378663100,1.7136836,212.9,212.86,0.03260504]
[1757378663298,6.89502312,212.9,212.86,0.03260504]
[1757378663502,7.69,212.89,212.86,0.03260504]
[1757378664895,5.18133952,212.9,212.86,6.11628864]
[1757378665201,5.18133952,212.89,212.86,6.11628864]
[1757378665402,12.87133952,212.89,212.86,1.74628864]
[1757378666404,5.18133952,212.88,212.86,1.74628864]
[1757378667205,15.45958315,212.89,212.86,1.74628864]
[1757378668504,7.69,212.88,212.86,1.74628864]
[1757378668896,15.45958315,212.88,212.86,0.03260504]
[1757378669200,7.69,212.87,212.86,0.03260504]
[1757378669595,15.45958315,212.87,212.86,0.03260504]
[1757378670406,17.17326675,212.87,212.86,0.03260504]
[1757378671398,7.76958315,212.87,212.86,0.03260504]
[1757378671605,7.76958315,212.88,212.86,0.03260504]
[1757378672203,7.69,212.91,212.86,0.03260504]
[1757378672408,18.07126286,212.92,212.86,0.03260504]
[1757378673110,7.80554423,212.87,212.86,0.03260504]
[1757378673710,7.80554423,212.87,212.86,1.74628864]
[1757378676413,7.80554423,212.87,212.86,0.03260504]
[1757378676809,7.80554423,212.88,212.87,4.37]
[1757378677014,7.80554423,212.89,212.87,4.37]
[1757378677214,5.20945709,212.88,212.87,4.37]
[1757378677415,5.20945709,212.89,212.88,4.37]
[1757378678010,5.20945709,212.89,212.88,4.83]
[1757378679514,5.20945709,212.9,212.88,4.38]
[1757378679715,5.20945709,212.89,212.88,4.38]
[1757378681117,12.89945709,212.89,212.87,2.6712392]
[1757378681314,5.20945709,212.88,212.87,2.6712392]
[1757378681512,7.69,212.87,212.84,2.6712392]
[1757378681715,5.20252637,212.86,212.84,2.6712392]
[1757378682315,12.89252637,212.88,212.84,7.0512392]
[1757378683315,7.69,212.88,212.84,7.0512392]
[1757378684316,5.20252637,212.89,212.85,4.38]
[1757378684518,5.20252637,212.9,212.85,4.38]
[1757378684821,5.20252637,212.9,212.87,7.0512392]
[1757378685321,5.20252637,212.91,212.87,7.0512392]
[1757378685921,12.48252637,212.91,212.87,7.0512392]
[1757378687121,7.28,212.91,212.87,7.0512392]
[1757378688515,5.20065774,212.93,212.91,4.38]
[1757378688722,15.08554423,213.03,212.93,4.38]
[1757378689021,15.08554423,213.03,212.98,2.6712392]
[1757378689419,7.80554423,213.05,212.98,2.6712392]
[1757378689612,7.28,213.04,212.98,2.6712392]
[1757378690621,7.28,213.04,212.96,4.38]
[1757378690622,7.28,213.04,213.01,2.6712392]
[1757378690822,7.80554423,213.08,212.96,4.38]
[1757378690823,7.28,213.07,212.96,4.38]
[1757378691022,17.75678343,213.07,212.97,2.6712392]
[1757378691520,15.08554423,213.06,212.95,2.6712392]
[1757378692222,7.28,213.06,212.95,2.6712392]
[1757378694824,7.28,213.06,212.95,7.0512392]
[1757378696824,2.6712392,213.07,212.93,123.6712392]
[1757378697022,7.28,213.03,212.93,2.6712392]
[1757378697229,7.28,213.03,212.91,4.38]
[1757378699132,7.28,213.03,212.93,2.6712392]
[1757378701428,7.28,213.03,212.94,4.38]
[1757378702132,7.28,213.03,212.96,2.6712392]
[1757378704030,7.28,213.03,212.93,2.6712392]
[1757378704530,7.28,213.0,212.9,2.6712392]
[1757378704725,9.9512392,213.0,212.9,2.6712392]
[1757378705129,7.28,213.0,212.93,0.03227779]
[1757378706023,0.03150999,212.99,212.93,0.03227779]
[1757378706523,7.28,212.98,212.93,0.03227779]
[1757378707029,0.03150999,212.99,212.93,0.03227779]
[1757378707635,7.31150999,212.99,212.93,0.03227779]
[1757378707833,7.31150999,212.99,212.93,2.70351699]
[1757378708233,7.31150999,212.99,212.93,7.08351699]
[1757378709336,0.03150999,212.99,212.93,0.03227779]
[1757378709537,7.28,212.98,212.93,0.03227779]
[1757378709737,7.28,212.95,212.84,2.6712392]
[1757378710338,7.28,212.92,212.81,2.6712392]
[1757378710935,7.28,212.88,212.79,4.41]
[1757378711144,7.28,212.88,212.8,2.6712392]
[1757378711636,0.03039433,212.89,212.65,5.25565172]
[1757378711637,7.28,212.86,212.74,4.41]
[1757378712238,7.31079439,212.82,212.74,4.41]
[1757378713333,7.31079439,212.82,212.7,4.41]
[1757378713744,7.28,212.82,212.7,4.41]
[1757378713939,0.03164447,212.78,212.7,4.41]
[1757378716744,7.82,212.77,212.66,11.18134242]
[1757378717138,7.82,212.85,212.66,4.41]
[1757378717340,0.02969783,212.74,212.66,4.41]
[1757378718247,7.82,212.73,212.66,4.41]
[1757378718542,7.82,212.73,212.62,326.88134242]
[1757378718746,7.82,212.73,212.62,320.11]
[1757378719139,0.0354456,212.7,212.62,320.11]
[1757378719334,0.0354456,212.7,212.63,4.41]
[1757378721534,7.82,212.82,212.68,4.38]
[1757378721735,7.82,212.82,212.69,46.52]
[1757378722540,7.82,212.82,212.7,4.38]
[1757378722747,7.82,212.82,212.73,4.38]
[1757378723147,7.82,212.91,212.76,6.77134242]
[1757378723346,7.82,212.94,212.76,21.65134242]
[1757378724049,8.84,212.95,212.76,21.65134242]
[1757378724238,13.99389592,212.95,212.76,21.65134242]
[1757378724443,8.84,212.95,212.76,21.65134242]
[1757378724641,7.82,212.94,212.76,21.65134242]
[1757378724844,8.84,212.95,212.76,21.65134242]
[1757378725042,7.82,212.94,212.76,21.65134242]
[1757378726148,8.84,212.95,212.76,21.65134242]